bitfinex/quotes_SOLUSD_20220302
["timestamp","ask_amount","ask_price","bid_price","bid_amount"]
[1646246306382,22.84850641,102.02,102.0,3.239062]
[1646246306681,6.0,102.01,102.0,3.239062]
[1646246309383,6.25,102.01,102.0,3.239062]
[1646246309784,6.0,102.01,102.0,4.08335427]
[1646246309984,18.6345,102.04,102.0,4.08335427]
[1646246310285,28.8245,102.04,102.0,4.08335427]
[1646246311084,6.0,102.03,102.0,4.08335427]
[1646246312184,20.7149,102.03,102.0,4.08335427]
[1646246313785,22.84850641,102.02,102.0,3.239062]
[1646246313985,14.7184,102.01,102.0,3.239062]
[1646246315089,14.7199,102.0,101.94,3.92]
[1646246315289,28.8299,102.0,101.94,3.92]
[1646246315489,32.7519,102.0,101.94,3.92]
[1646246316088,6.0,101.99,101.94,3.92]
[1646246317090,20.7216,101.99,101.94,3.92]
[1646246317492,1.78448123,101.98,101.94,3.92]
[1646246317790,14.11,101.98,101.94,3.92]
[1646246318191,14.7238,101.97,101.94,3.92]
[1646246320092,14.9738,101.97,101.94,3.92]
[1646246321401,14.9738,101.97,101.9,106.8102]
[1646246321693,14.9738,101.97,101.9,82.7523]
[1646246321894,6.0,101.96,101.9,82.7523]
[1646246322094,6.0,101.96,101.9,126.88200045]
[1646246322302,6.0,101.96,101.9,82.7523]
[1646246322895,6.0,101.96,101.9,24.5023]
[1646246323503,20.11,101.96,101.9,24.5023]
[1646246324096,20.36,101.96,101.9,24.5023]
[1646246324296,20.36,101.96,101.88,78.1613]
[1646246324496,22.14448123,101.96,101.88,78.1613]
[1646246325095,49.71288123,101.96,101.88,78.1613]
[1646246325296,47.9284,101.96,101.88,78.1613]
[1646246325901,47.9284,101.96,101.88,73.1613]
[1646246326201,14.7264,101.95,101.88,73.1613]
[1646246326401,28.8364,101.95,101.88,73.1613]
[1646246326800,28.8364,101.95,101.88,131.4113]
[1646246327000,28.8364,101.95,101.88,58.5]
[1646246327901,28.8364,101.95,101.89,60.68094487]
[1646246328211,14.11,101.95,101.89,119.18094487]
[1646246330001,6.0,101.94,101.89,119.18094487]
[1646246330201,6.0,101.94,101.89,0.25]
[1646246330402,6.0,101.94,101.88,58.5]
[1646246331006,6.25,101.94,101.88,58.5]
[1646246331205,6.0,101.94,101.88,114.16640017]
[1646246331606,6.0,101.94,101.88,55.91640017]
[1646246331804,6.0,101.94,101.88,0.25]
[1646246332006,6.0,101.94,101.87,82.0244]
[1646246332209,6.0,101.94,101.87,23.7744]
[1646246333107,20.36,101.94,101.87,23.7744]
[1646246333308,35.088,101.94,101.87,23.7744]
[1646246333707,20.36,101.94,101.87,23.5244]
[1646246334732,14.7309,101.92,101.85,22.9785]
[1646246334909,14.11,101.91,101.85,22.9785]
[1646246335907,14.11,101.91,101.85,81.2285]
[1646246336108,14.11,101.91,101.85,22.9785]
[1646246336510,14.11,101.91,101.85,23.2285]
[1646246337210,14.11,101.91,101.85,22.9785]
[1646246337413,14.11,101.91,101.84,24.5775]
[1646246338411,14.7352,101.89,101.84,75.40227663]
[1646246338616,6.0,101.88,101.84,51.07477663]
[1646246338817,14.9852,101.89,101.84,0.25]
[1646246339015,14.9852,101.89,101.82,64.25]
[1646246339213,6.0,101.88,101.82,69.5]
[1646246339512,0.25,101.89,101.82,167.75]
[1646246339713,6.0,101.89,101.82,69.5]
[1646246339913,6.0,101.89,101.83,108.09179401]
[1646246340113,6.0,101.89,101.83,108.34179401]
[1646246340620,6.0,101.89,101.83,58.5]
[1646246340820,6.0,101.89,101.82,5.0]
[1646246341026,18.037,101.88,101.82,5.0]
[1646246341631,14.11,101.88,101.81,53.78334569]
[1646246341825,14.7386,101.87,101.78,51.6534]
[1646246342029,14.11,101.86,101.78,56.6534]
[1646246342243,20.36,101.86,101.78,5.0]
[1646246342454,3.928,101.85,101.78,5.0]
[1646246342646,14.11,101.84,101.78,5.0]
[1646246342848,14.11,101.84,101.79,45.97987205]
[1646246342849,28.8543,101.84,101.79,45.97987205]
[1646246343248,14.11,101.84,101.77,80.9723]
[1646246343446,14.11,101.84,101.78,3.928]
[1646246344148,14.11,101.84,101.78,58.5]
[1646246344545,14.11,101.84,101.79,50.78145256]
[1646246344746,14.11,101.84,101.79,51.03145256]
[1646246345148,14.11,101.84,101.79,109.28145256]
[1646246345546,20.36,101.86,101.79,109.28145256]
[1646246346446,35.0998,101.86,101.79,51.03145256]
[1646246346747,3.928,101.85,101.79,51.03145256]
[1646246346948,18.038,101.85,101.79,51.03145256]
[1646246347147,14.11,101.85,101.79,51.03145256]
[1646246347445,14.11,101.85,101.79,0.25]
[1646246347647,14.11,101.85,101.78,58.5]
[1646246348047,18.038,101.87,101.79,3.928]
[1646246348247,28.548,101.89,101.8,115.65159949]
[1646246348447,24.62,101.89,101.8,115.90159949]
[1646246348646,3.927,101.88,101.8,115.90159949]
[1646246349047,18.037,101.88,101.8,0.25]
[1646246349351,40.72375995,101.88,101.8,0.25]
[1646246349549,6.0,101.87,101.79,22.9798]
[1646246349752,3.928,101.86,101.79,22.9798]
[1646246349951,18.038,101.86,101.79,22.9798]
[1646246350751,18.038,101.86,101.79,22.7298]
[1646246351154,14.741,101.85,101.79,22.7298]
[1646246352151,14.741,101.85,101.79,74.68894716]
[1646246352351,14.741,101.85,101.76,5.0]
[1646246352551,14.7428,101.84,101.76,24.4657]
[1646246352952,14.7428,101.84,101.76,24.2157]
[1646246353152,14.11,101.86,101.77,102.178]
[1646246353354,14.11,101.86,101.79,58.25]
[1646246353554,14.11,101.86,101.8,102.02929477]
[1646246354150,6.0,101.85,101.8,102.02929477]
[1646246354352,6.0,101.85,101.8,102.27929477]
[1646246354754,28.8489,101.87,101.8,102.27929477]
[1646246354954,6.0,101.86,101.8,102.27929477]
[1646246355354,18.038,101.89,101.8,200.52929477]
[1646246355556,6.0,101.88,101.84,58.25]
[1646246355758,6.0,101.88,101.84,58.5]
[1646246355956,3.926,101.9,101.85,104.93061363]
[1646246356157,6.0,101.89,101.85,105.18061363]
[1646246356858,18.036,101.93,101.85,105.18061363]
[1646246357059,159.7644325,101.94,101.85,107.72965366]
[1646246357276,159.7644325,101.94,101.87,58.25]
[1646246357465,159.7644325,101.94,101.87,206.07106349]
[1646246357662,159.7644325,101.94,101.89,58.25]
[1646246357861,159.7644325,101.94,101.88,6.0]
[1646246358062,6.0,101.93,101.84,23.4783]
[1646246358261,14.11,101.92,101.84,23.4783]
[1646246358463,3.926,101.91,101.84,23.4783]
[1646246358662,14.7339,101.9,101.84,23.4783]
[1646246358863,0.25,101.9,101.82,141.78891679]
[1646246359061,14.11,101.9,101.83,58.25]
[1646246359265,14.11,101.9,101.82,72.9277]
[1646246359463,3.926,101.89,101.82,72.9277]
[1646246359667,18.036,101.89,101.82,0.25]
[1646246359863,14.11,101.89,101.81,137.4069]
[1646246360065,28.8453,101.89,101.82,58.25]
[1646246360262,14.11,101.89,101.82,58.5]
[1646246361066,14.7365,101.88,101.82,58.5]
[1646246361264,28.2942,101.9,101.83,116.83727548]
[1646246361465,14.11,101.9,101.83,116.83727548]
[1646246361672,14.11,101.9,101.83,117.08727548]
[1646246363169,14.11,101.92,101.83,230.06747548]
[1646246363365,65.7036,101.93,101.83,230.06747548]
[1646246363366,61.7776,101.93,101.83,230.06747548]
[1646246363967,6.0,101.92,101.83,230.06747548]
[1646246365067,6.0,101.92,101.83,231.82395327]
[1646246365266,14.11,101.94,101.83,231.82395327]
[1646246366068,14.11,101.94,101.83,236.82395327]
[1646246366269,14.11,101.94,101.83,231.82395327]
[1646246366871,14.11,101.94,101.85,156.5]
[1646246367069,14.11,101.94,101.87,156.5]
[1646246367271,14.11,101.94,101.89,58.25]
[1646246367468,14.11,101.94,101.9,103.37677004]
[1646246367670,14.11,101.94,101.9,103.62677004]
[1646246367868,3.926,101.95,101.9,103.62677004]
[1646246368068,183.05627702,101.97,101.9,103.62677004]
[1646246368768,168.33187702,101.97,101.9,103.62677004]
[1646246368968,6.0,101.96,101.9,103.62677004]
[1646246370074,6.25,101.96,101.9,103.62677004]
[1646246371073,6.0,101.95,101.9,103.62677004]
[1646246371874,0.25,101.96,101.9,103.62677004]
[1646246372074,6.0,101.97,101.9,103.62677004]
[1646246372977,9.924,101.97,101.9,103.62677004]
[1646246373177,9.924,101.97,101.9,45.37677004]
[1646246373377,38.7577,101.97,101.9,45.37677004]
[1646246373579,36.84104179,101.97,101.9,45.37677004]
[1646246373778,35.0837,101.97,101.9,45.37677004]
[1646246374478,3.924,101.96,101.88,58.86]
[1646246374678,2.00734179,101.97,101.88,58.86]
[1646246374881,16.11734179,101.97,101.88,58.86]
[1646246375281,3.924,101.96,101.88,58.86]
[1646246375478,18.034,101.96,101.88,58.86]
[1646246375879,18.034,101.96,101.88,0.25]
[1646246375880,14.728,101.94,101.88,0.25]
[1646246376091,44.12254179,101.96,101.87,24.1896]
[1646246376294,1.75734179,101.94,101.85,22.5252]
[1646246376493,15.86734179,101.94,101.85,22.7752]
[1646246376692,15.86734179,101.94,101.84,24.5969]
[1646246376892,53.0378,101.93,101.84,24.5969]
[1646246377093,14.11,101.92,101.84,130.57931289]
[1646246377494,1.75734179,101.94,101.84,130.57931289]
[1646246377495,15.86734179,101.94,101.84,130.57931289]
[1646246377692,63.93404179,101.94,101.84,130.57931289]
[1646246377894,67.85804179,101.94,101.84,71.71931289]
[1646246378093,14.7323,101.91,101.84,130.57931289]
[1646246378695,14.7323,101.91,101.84,130.82931289]
[1646246380097,14.9823,101.91,101.84,130.82931289]
[1646246381896,6.0,101.9,101.84,83.7069]
[1646246382096,6.0,101.9,101.84,0.25]
[1646246382295,6.0,101.9,101.83,59.11]
[1646246382997,6.0,101.9,101.84,102.85205069]
[1646246383196,6.0,101.9,101.84,103.10205069]
[1646246383596,6.0,101.9,101.84,201.35205069]
[1646246383797,11.78,101.93,101.84,210.40905069]
[1646246383798,3.926,101.93,101.84,210.40905069]
[1646246384102,6.0,101.92,101.84,112.15905069]
[1646246384899,24.7071,101.94,101.84,103.10205069]
[1646246385102,24.7071,101.94,101.84,117.83115069]
[1646246385103,6.0,101.93,101.84,117.83115069]
[1646246385299,9.924,101.93,101.84,117.83115069]
[1646246386300,33.2284,101.93,101.84,117.83115069]
[1646246387102,48.2079,101.93,101.84,117.83115069]
[1646246387302,33.4784,101.93,101.84,103.10205069]
[1646246387502,47.01574179,101.93,101.84,103.10205069]
[1646246387904,47.01574179,101.93,101.84,102.85205069]
[1646246388105,47.01574179,101.93,101.83,83.4034]
[1646246388305,14.7339,101.9,101.83,24.5434]
[1646246388504,11.78,101.91,101.82,3.926]
[1646246388709,13.53734179,101.9,101.82,3.926]
[1646246389104,13.53734179,101.9,101.82,51.30758637]
[1646246389305,14.7366,101.88,101.82,3.926]
[1646246389504,3.927,101.89,101.82,3.926]
[1646246389704,1.75734179,101.88,101.82,3.926]
[1646246389906,11.78,101.87,101.79,23.0669]
[1646246390110,11.78,101.87,101.78,22.6605]
[1646246390311,13.53734179,101.87,101.78,140.79389183]
[1646246390609,28.27534179,101.87,101.78,140.79389183]
[1646246390806,28.52534179,101.87,101.78,140.79389183]
[1646246391105,28.52534179,101.87,101.78,141.04389183]
[1646246391306,28.52534179,101.87,101.77,112.9]
[1646246391506,77.89640262,101.87,101.77,112.9]
[1646246391706,81.82440262,101.87,101.77,112.9]
[1646246392109,14.7454,101.84,101.77,112.9]
[1646246392307,26.5254,101.84,101.77,112.9]
[1646246393107,26.5254,101.84,101.77,113.15]
[1646246393707,18.6723,101.83,101.77,113.15]
[1646246393908,18.6723,101.83,101.77,112.9]
[1646246394308,14.7443,101.83,101.77,112.9]
[1646246394509,14.7443,101.83,101.76,58.86]
[1646246395107,14.7443,101.83,101.76,59.11]
[1646246395511,14.7443,101.83,101.76,101.82009364]
[1646246396109,6.0,101.82,101.76,101.82009364]
[1646246397211,6.0,101.82,101.76,0.25]
[1646246397411,6.0,101.82,101.75,3.928]
[1646246397612,3.928,101.82,101.74,58.86]
[1646246398122,15.708,101.82,101.73,50.88227272]
[1646246398312,11.78,101.82,101.74,3.93]
[1646246398516,66.61110834,101.82,101.74,3.93]
[1646246398712,67.99756663,101.82,101.71,51.0653]
[1646246398917,67.02666663,101.82,101.71,3.93]
[1646246399112,110.7642569,101.81,101.68,3.93]
[1646246399313,15.711,101.8,101.67,52.56044183]
[1646246399514,51.55055297,101.8,101.66,62.791]
[1646246399714,51.55055297,101.8,101.63,145.5828]
[1646246399715,14.7531,101.77,101.64,62.791]
[1646246399915,15.712,101.76,101.67,22.66716936]
[1646246400116,15.712,101.76,101.67,26.59916936]
[1646246400315,15.712,101.76,101.66,58.86]
[1646246400515,15.712,101.76,101.67,118.00393226]
[1646246400719,11.78,101.76,101.67,118.00393226]
[1646246400915,11.78,101.76,101.67,59.14393226]
[1646246401115,14.7596,101.74,101.67,63.07593226]
[1646246401316,26.5396,101.74,101.67,59.14393226]
[1646246402016,26.7896,101.74,101.67,59.14393226]
[1646246402241,26.7896,101.74,101.65,62.792]
[1646246402420,34.2246,101.74,101.65,3.932]
[1646246402619,34.2246,101.74,101.64,3.932]
[1646246402818,6.0,101.73,101.64,3.932]
[1646246403118,18.6919,101.72,101.64,58.86]
[1646246403319,18.6919,101.72,101.65,51.79876338]
[1646246403720,18.6919,101.72,101.65,52.04876338]
[1646246404119,18.6919,101.72,101.65,110.90876338]
[1646246405422,3.932,101.72,101.65,110.90876338]
[1646246405621,0.25,101.72,101.66,64.86]
[1646246405823,14.7574,101.74,101.67,111.25701048]
[1646246406022,3.932,101.76,101.67,111.50701048]
[1646246406222,59.2235,101.77,101.67,111.50701048]
[1646246406420,6.0,101.76,101.67,111.50701048]
[1646246407122,21.0048,101.76,101.67,126.26041048]
[1646246407322,22.71307734,101.76,101.67,126.26041048]
[1646246407523,34.24307734,101.76,101.67,126.26041048]
[1646246407922,3.932,101.75,101.67,126.26041048]
[1646246408821,20.7548,101.76,101.67,126.26041048]
[1646246409324,34.23870697,101.76,101.67,111.50701048]
[1646246409523,3.932,101.75,101.67,111.50701048]
[1646246409822,14.7586,101.73,101.67,111.50701048]
[1646246410023,15.0086,101.73,101.67,111.50701048]
[1646246410928,0.25,101.73,101.67,111.50701048]
[1646246411126,14.7564,101.75,101.67,111.50701048]
[1646246411525,14.7564,101.75,101.67,115.43901048]
[1646246411924,59.2235,101.77,101.67,111.50701048]
[1646246412327,59.2235,101.77,101.67,115.43901048]
[1646246413024,73.9771,101.77,101.67,130.19331048]
[1646246413225,6.0,101.76,101.67,130.19331048]
[1646246413634,6.25,101.76,101.67,130.19331048]
[1646246413930,10.182,101.76,101.67,126.26131048]
[1646246414127,36.7171,101.76,101.67,111.50701048]
[1646246417128,36.7171,101.76,101.67,126.26161048]
[1646246417353,10.182,101.76,101.67,224.51161048]
[1646246417554,6.25,101.76,101.67,224.51161048]
[1646246417754,47.4435,101.77,101.67,229.51161048]
[1646246417951,47.4435,101.77,101.67,224.51161048]
[1646246418153,47.4435,101.77,101.69,113.90899952]
[1646246418353,47.4435,101.77,101.69,114.15899952]
[1646246418555,51.3745,101.77,101.69,114.15899952]
[1646246418751,66.1273,101.77,101.69,114.15899952]
[1646246418953,62.1963,101.77,101.69,114.15899952]
[1646246419355,3.931,101.78,101.69,227.16059952]
[1646246419755,22.5354,101.79,101.69,227.16059952]
[1646246420155,6.0,101.78,101.69,227.16059952]
[1646246420655,6.0,101.78,101.69,128.91059952]
[1646246420856,24.6824,101.78,101.69,128.91059952]
[1646246422155,9.931,101.78,101.69,227.16059952]
[1646246422356,6.0,101.78,101.69,227.16059952]
[1646246422956,22.5354,101.79,101.69,227.16059952]
[1646246423158,84.68913789,101.8,101.69,128.91059952]
[1646246423558,14.75,101.79,101.69,128.91059952]
[1646246423758,71.64364486,101.8,101.69,128.91059952]
[1646246423958,53.03380697,101.8,101.69,128.91059952]
[1646246424156,18.60983789,101.79,101.69,128.91059952]
[1646246424557,89.20853292,101.8,101.69,227.16059952]
[1646246424759,20.38410697,101.8,101.69,227.16059952]
[1646246424959,20.38410697,101.8,101.69,265.34708393]
[1646246425359,20.63410697,101.8,101.69,265.34708393]
[1646246426559,6.0,101.79,101.69,265.34708393]
[1646246427763,6.0,101.79,101.69,270.34708393]
[1646246428763,6.0,101.79,101.69,268.04699952]
[1646246428963,6.25,101.79,101.69,268.04699952]
[1646246429462,20.9999,101.79,101.69,268.04699952]
[1646246430461,3.931,101.78,101.69,268.04699952]
[1646246430862,3.931,101.78,101.69,87.9664]
[1646246431073,11.78,101.77,101.68,58.86]
[1646246431262,3.932,101.76,101.68,58.86]
[1646246431866,17.41590697,101.76,101.68,58.86]
[1646246432070,14.7569,101.75,101.68,58.86]
[1646246432265,3.932,101.74,101.68,58.86]
[1646246432467,5.63590697,101.75,101.68,58.86]
[1646246432866,38.84143292,101.75,101.68,58.86]
[1646246433168,13.48390697,101.75,101.68,58.86]
[1646246433367,3.932,101.74,101.68,58.86]
[1646246434166,20.7589,101.73,101.66,58.86]
[1646246434366,20.7589,101.73,101.66,59.11]
[1646246435170,20.7589,101.73,101.66,113.61671049]
[1646246435469,20.7589,101.73,101.66,59.11]
[1646246436067,21.0089,101.73,101.66,59.11]
[1646246436470,21.0089,101.73,101.66,0.25]
[1646246436670,32.7889,101.73,101.65,28.7922]
[1646246438170,26.7889,101.73,101.65,28.7922]
[1646246438669,29.90090046,101.73,101.65,3.932]
[1646246438869,26.76541252,101.72,101.65,3.932]
[1646246439072,14.768,101.7,101.65,3.932]
[1646246439269,26.548,101.7,101.65,3.932]
[1646246439673,47.97352595,101.7,101.65,3.932]
[1646246439872,49.67743292,101.7,101.6,119.88614767]
[1646246440272,49.67743292,101.7,101.6,59.35193095]
[1646246440471,49.67743292,101.7,101.6,0.74193095]
[1646246440671,24.3457,101.69,101.6,59.35193095]
[1646246440869,14.7676,101.67,101.6,0.74193095]
[1646246441074,11.78,101.66,101.6,0.49193095]
[1646246441272,17.41890697,101.66,101.6,0.49193095]
[1646246441680,6.0,101.65,101.53,5.0]
[1646246441877,15.716,101.64,101.53,63.86]
[1646246442078,29.33848158,101.64,101.53,63.86]
[1646246442275,54.20124784,101.64,101.53,5.0]
[1646246442477,37.48858117,101.63,101.51,46.342]
[1646246442677,3.938,101.62,101.51,106.27494088]
[1646246442876,54.20324784,101.62,101.52,58.86]
[1646246443079,54.20324784,101.62,101.5,127.6783]
[1646246443379,24.86276626,101.61,101.5,127.6783]
[1646246443679,11.78,101.6,101.5,132.6783]
[1646246443977,17.749,101.6,101.5,132.6783]
[1646246444175,14.7794,101.59,101.51,110.68538568]
[1646246444377,11.78,101.61,101.53,108.31609948]
[1646246444578,24.23020697,101.63,101.52,6.0]
[1646246444778,1.70390697,101.6,101.48,23.6348]
[1646246444975,1.70390697,101.6,101.47,75.3414]
[1646246445180,49.286,101.57,101.44,112.9]
[1646246445375,49.286,101.57,101.47,5.0]
[1646246445578,11.78,101.56,101.48,49.96772407]
[1646246446077,11.78,101.56,101.49,6.0]
[1646246446279,26.5619,101.58,101.5,60.26978101]
[1646246446479,30.5009,101.58,101.5,60.51978101]
[1646246446882,11.78,101.58,101.5,60.51978101]
[1646246447678,11.78,101.58,101.5,119.37978101]
[1646246447878,11.78,101.58,101.5,60.51978101]
[1646246448078,15.719,101.58,101.5,60.26978101]
[1646246448284,17.41859914,101.58,101.46,3.939]
[1646246448483,64.80939914,101.58,101.45,72.6038]
[1646246448980,14.785,101.56,101.45,146.2488]
[1646246449182,26.565,101.56,101.45,146.2488]
[1646246449382,26.565,101.56,101.46,55.31085155]
[1646246449581,26.565,101.56,101.47,6.0]
[1646246449787,26.565,101.56,101.49,54.71330998]
[1646246450080,26.565,101.56,101.49,54.96330998]
[1646246450485,26.565,101.56,101.49,54.71330998]
[1646246450681,14.7863,101.55,101.46,3.939]
[1646246450881,28.26589914,101.55,101.46,4.189]
[1646246451100,28.26589914,101.55,101.46,3.939]
[1646246451301,26.5663,101.55,101.46,3.939]
[1646246451700,11.78,101.55,101.46,3.939]
[1646246451904,3.94,101.54,101.43,49.3773]
[1646246452101,17.78,101.53,101.43,49.3773]
[1646246452601,17.78,101.53,101.43,108.2373]
[1646246452801,11.78,101.53,101.44,60.18734137]
[1646246453000,26.5694,101.53,101.44,60.18734137]
[1646246453201,3.94,101.52,101.44,60.43734137]
[1646246453401,15.72,101.52,101.44,60.43734137]
[1646246453602,11.78,101.52,101.44,119.29734137]
[1646246454702,11.78,101.52,101.44,59.11]
[1646246455102,26.5708,101.52,101.44,59.11]
[1646246455704,11.78,101.52,101.46,58.86]
[1646246455903,11.78,101.52,101.46,59.11]
[1646246456104,11.78,101.52,101.47,118.546162]
[1646246456303,78.8035,101.54,101.47,118.546162]
[1646246456502,78.8035,101.54,101.47,58.86]
[1646246456703,74.8635,101.54,101.46,0.25]
[1646246456903,27.52812259,101.53,101.46,0.25]
[1646246457105,6.0,101.52,101.44,59.11]
[1646246457304,6.0,101.52,101.43,45.4373]
[1646246457506,39.89145592,101.52,101.43,45.4373]
[1646246457904,53.14457815,101.52,101.43,104.2973]
[1646246458206,53.14457815,101.52,101.43,45.4373]
[1646246458406,53.14457815,101.52,101.42,79.3437]
[1646246458407,14.7935,101.5,101.42,5.0]
[1646246458608,11.78,101.49,101.41,49.9315836]
[1646246458812,13.01816272,101.49,101.41,108.7915836]
[1646246459006,40.54628531,101.49,101.41,108.7915836]
[1646246459407,39.30812259,101.49,101.41,108.7915836]
[1646246460510,39.30812259,101.49,101.41,109.0415836]
[1646246460708,39.55812259,101.49,101.41,109.0415836]
[1646246461509,12.03,101.49,101.41,109.0415836]
[1646246461909,36.2285,101.51,101.41,207.2915836]
[1646246462113,24.4485,101.51,101.41,207.2915836]
[1646246462312,390.03710854,101.52,101.41,214.4193727]
[1646246462511,378.25710854,101.52,101.41,209.4193727]
[1646246462712,378.25710854,101.52,101.45,58.86]
[1646246462911,378.25710854,101.52,101.45,59.11]
[1646246463111,378.25710854,101.52,101.46,103.04654447]
[1646246463411,24.7594,101.53,101.46,59.11]
[1646246463612,39.7978,101.53,101.46,58.86]
[1646246463812,3.94,101.52,101.46,58.86]
[1646246464015,3.94,101.52,101.45,58.86]
[1646246464219,28.90419702,101.52,101.42,63.7064]
[1646246464515,66.42504301,101.52,101.41,5.0]
[1646246464718,14.7953,101.48,101.41,5.0]
[1646246464915,7.904,101.48,101.41,5.0]
[1646246465114,48.59119702,101.48,101.41,5.0]
[1646246465315,44.64819702,101.48,101.38,3.942]
[1646246465518,3.943,101.47,101.38,3.942]
[1646246465717,17.78,101.46,101.33,54.0847]
[1646246465916,14.8051,101.41,101.33,54.0847]
[1646246466114,11.78,101.43,101.34,58.86]
[1646246466317,15.724,101.43,101.33,50.35764635]
[1646246466516,24.96419702,101.41,101.33,50.35764635]
[1646246466717,24.96419702,101.41,101.33,49.85764635]
[1646246466918,24.96419702,101.41,101.33,45.35764635]
[1646246467116,24.96419702,101.41,101.34,6.0]
[1646246467419,24.96419702,101.41,101.32,5.0]
[1646246467420,36.74419702,101.41,101.32,5.0]
[1646246467618,38.69267199,101.41,101.32,5.0]
[1646246467817,38.69267199,101.41,101.27,47.9229]
[1646246468119,38.69267199,101.41,101.28,6.0]
[1646246468318,38.69267199,101.41,101.29,112.22912828]
[1646246468520,88.05817199,101.41,101.29,53.36912828]
[1646246468723,56.15523992,101.41,101.28,14.8109]
[1646246468917,3.946,101.4,101.27,47.9229]
[1646246469120,17.78,101.39,101.28,98.25]
[1646246469319,17.78,101.39,101.3,58.86]
[1646246469517,17.78,101.39,101.3,57.86]
[1646246469518,32.5893,101.39,101.3,57.86]
[1646246469719,32.5893,101.39,101.31,43.40847121]
[1646246470020,26.5893,101.39,101.31,101.26847121]
[1646246470218,26.5893,101.39,101.31,101.51847121]
[1646246470417,14.8093,101.39,101.31,101.01847121]
[1646246470816,14.8093,101.39,101.31,42.90847121]
[1646246471016,6.0,101.38,101.31,42.40847121]
[1646246471218,17.78,101.38,101.31,42.40847121]
[1646246471420,17.78,101.38,101.28,19.8105]
[1646246471622,17.78,101.38,101.27,47.9229]
[1646246471623,40.98872392,101.38,101.27,47.9229]
[1646246471918,40.98872392,101.38,101.28,64.86]
[1646246472122,18.03,101.38,101.28,64.86]
[1646246472320,11.78,101.38,101.28,63.86]
[1646246472521,36.448,101.4,101.3,58.86]
[1646246472721,36.448,101.4,101.31,51.4123579]
[1646246472920,36.448,101.4,101.31,51.6623579]
[1646246473120,36.448,101.4,101.32,58.86]
[1646246473322,11.78,101.4,101.32,58.86]
[1646246473523,11.78,101.4,101.27,50.47194003]
[1646246473524,9.946,101.39,101.27,50.47194003]
[1646246473820,1.69119496,101.4,101.32,2.54904003]
[1646246474021,153.94181029,101.47,101.32,2.54904003]
[1646246474223,6.0,101.46,101.33,122.52245498]
[1646246474421,14.8022,101.44,101.33,137.32515498]
[1646246474621,17.78,101.43,101.35,51.73526896]
[1646246474822,3.944,101.42,101.35,51.98526896]
[1646246475125,17.78,101.43,101.35,51.73526896]
[1646246475522,14.8044,101.42,101.35,51.73526896]
[1646246475721,26.5844,101.42,101.35,51.73526896]
[1646246475922,30.5294,101.42,101.35,51.73526896]
[1646246476123,30.7794,101.42,101.35,51.98526896]
[1646246476326,30.7794,101.42,101.35,110.84526896]
[1646246476523,3.945,101.42,101.35,125.64666896]
[1646246476725,3.944,101.43,101.35,125.64666896]
[1646246476925,3.944,101.45,101.35,128.19570899]
[1646246477126,3.944,101.46,101.35,128.19570899]
[1646246477326,174.82356809,101.48,101.37,58.86]
[1646246477526,174.82356809,101.48,101.39,58.86]
[1646246477731,174.82356809,101.48,101.41,58.86]
[1646246478028,174.82356809,101.48,101.42,43.13730107]
[1646246478329,174.82356809,101.48,101.42,43.38730107]
[1646246478931,175.07356809,101.48,101.42,43.38730107]